fUST/lending_fUST_20250729
["ID","MTS","AMOUNT","RATE_DAILY","PERIOD"]
[375761370,1753732258702,-4776.36250313,0.00025479,2]
[375761371,1753732258711,-2556.19,0.00025479,2]
[375761372,1753732258721,-541.19,0.00025479,2]
[375761373,1753732258730,-542.82,0.00025479,2]
[375761374,1753732258740,-1757.59,0.00025479,2]
[375761375,1753732258749,-505.41,0.00025479,2]
[375761376,1753732258758,-3430.48,0.00025479,2]
[375761377,1753732258767,-622.31,0.00025479,2]
[375761378,1753732258776,-473.36,0.00025479,2]
[375761379,1753732258786,-930.29,0.00025479,2]
[375761380,1753732258796,-194.7,0.00025479,2]
[375761381,1753732258805,-738.40196491,0.00025479,2]
[375761382,1753732258814,-3165.33,0.00025479,2]
[375761383,1753732258824,-1490.91,0.00025479,2]
[375761384,1753732258833,-483.55634118,0.00025479,2]
[375761385,1753732258842,-2025.70183965,0.00025479,2]
[375761386,1753732258851,-780.03953746,0.00025479,2]
[375761387,1753732258861,-3120.15814984,0.00025479,2]
[375761388,1753732258871,-7013.3354813,0.00025479,2]
[375761389,1753732258881,-1649.51,0.00025479,2]
[375761390,1753732258892,-500.53,0.00025479,2]
[375761391,1753732258906,-904.94,0.00025479,2]
[375761392,1753732258927,-710.81,0.00025479,2]
[375761393,1753732258947,-645.75952869,0.00025479,2]
[375761394,1753732258957,-1387.68708606,0.00025479,2]
[375761395,1753732258966,-151.0,0.0002548,2]
[375761396,1753732258975,-151.0,0.0002548,2]
[375761397,1753732258984,-151.0,0.0002548,2]
[375761398,1753732258993,-151.0,0.0002548,2]
[375761399,1753732259003,-500.0,0.0002548,2]
[375761400,1753732259012,-151.0,0.0002548,2]
[375761401,1753732259021,-151.0,0.0002548,2]
[375761402,1753732259031,-151.0,0.0002548,2]
[375761403,1753732259044,-151.0,0.0002548,2]
[375761404,1753732259054,-151.0,0.0002548,2]
[375761405,1753732259069,-151.0,0.0002548,2]
[375761406,1753732259080,-151.0,0.0002548,2]
[375761407,1753732259090,-151.0,0.0002548,2]
[375761408,1753732259099,-151.0,0.0002548,2]
[375761409,1753732259109,-151.0,0.0002548,2]
[375761410,1753732259119,-151.0,0.0002548,2]
[375761411,1753732259128,-255.98645579,0.0002548,2]
[375761412,1753732259138,-198.0,0.0002548,2]
[375761413,1753732259147,-503.0,0.0002548,2]
[375761414,1753732259156,-151.0,0.0002548,2]
[375761415,1753732259166,-151.0,0.0002548,2]
[375761416,1753732259176,-599.0,0.0002548,2]
[375761417,1753732259185,-500.0,0.00025483,2]
[375761418,1753732259195,-500.0,0.00025487,2]
[375761419,1753732259205,-807.0,0.00025487,2]
[375761420,1753732259215,-158.348141,0.0002549,14]
[375761421,1753732259224,-500.0,0.00025495,2]
[375761422,1753732259233,-960.0,0.00025497,2]
[375761423,1753732259242,-160.0,0.000255,10]
[375761424,1753732259251,-1238.09,0.000255,7]
[375761425,1753732259260,-160.0,0.000255,3]
[375761426,1753732259269,-500.0,0.0002551,2]
[375761427,1753732259278,-807.0,0.00025516,2]
[375761428,1753732259287,-500.0,0.00025526,2]
[375761429,1753732259296,-4863.78450328,0.00025551,2]
[375761430,1753732259306,-500.0,0.00025562,2]
[375761431,1753732259315,-754.31,0.00025578,3]
[375761432,1753732259324,-500.0,0.0002558,2]
[375761433,1753732259333,-178.4049755,0.00025589,2]
[375761434,1753732259342,-178.4049755,0.00025589,2]
[375761435,1753732259351,-178.1147122,0.00025589,2]
[375761436,1753732259361,-578.0900773,0.00025589,2]
[375761437,1753732259370,-356.6695192,0.00025589,2]
[375761438,1753732259379,-160.0754546,0.00025589,2]
[375761439,1753732259388,-160.0754546,0.00025589,2]
[375761440,1753732259397,-578.0900773,0.00025589,2]
[375761441,1753732259407,-158.348141,0.00025592,5]
[375761442,1753732259416,-154.51709,0.00025635,7]
[375761443,1753732259425,-154.51709,0.00025635,7]
[375761444,1753732259434,-158.348141,0.00025664,2]
[375761445,1753732259443,-754.31,0.00025678,4]
[375761446,1753732259452,-2944.11,0.00025678,11]
[375761447,1753732259461,-323.94,0.00025678,11]
[375761448,1753732259471,-769.83377473,0.00025688,2]
[375761449,1753732259480,-500.0,0.00025706,2]
[375761450,1753732259488,-158.348141,0.00025735,14]
[375761451,1753732259498,-1212.3,0.00025749,7]
[375761452,1753732259507,-502.4956948,0.0002575,5]
[375761453,1753732259516,-500.0,0.0002575,5]
[375761454,1753732259525,-500.0,0.0002575,5]
[375761455,1753732259534,-325.0,0.00025753,3]
[375761456,1753732259543,-325.0,0.00025753,3]
[375761457,1753732259553,-192.66375418,0.00025753,3]
[375761458,1753732259562,-158.089306,0.00025753,4]
[375761459,1753732259571,-158.348141,0.00025753,4]
[375761460,1753732259580,-156.143482,0.00025753,4]
[375761461,1753732259589,-500.0,0.00025753,4]
[375761462,1753732259598,-151.0,0.00025754,2]
[375761463,1753732259607,-151.0,0.00025754,2]
[375761464,1753732259617,-500.0,0.00025754,2]
[375761465,1753732259630,-245.0,0.00025754,2]
[375761466,1753732259639,-151.0,0.00025754,2]
[375761467,1753732259649,-151.0,0.00025754,2]
[375761468,1753732259659,-199.42810281,0.00025754,2]
[375761469,1753732259668,-235.38621939,0.00025754,2]
[375761470,1753732259677,-503.0,0.00025754,2]
[375761471,1753732259687,-151.0,0.00025754,2]
[375761472,1753732259699,-151.0,0.00025754,2]
[375761473,1753732259708,-599.0,0.00025754,2]
[375761474,1753732259717,-200.0,0.00025762,15]
[375761475,1753732259728,-200.0,0.00025762,15]
[375761476,1753732259737,-200.0,0.00025762,15]
[375761477,1753732259746,-200.0,0.00025762,15]
[375761478,1753732259755,-200.0,0.00025762,15]
[375761479,1753732259765,-200.0,0.00025762,15]
[375761480,1753732259775,-200.0,0.00025762,15]
[375761481,1753732259784,-200.0,0.00025762,15]
[375761482,1753732259793,-200.0,0.00025762,15]
[375761483,1753732259802,-394.0,0.00025762,15]
[375761484,1753732259812,-754.31,0.00025778,4]
[375761485,1753732259822,-2000.0,0.000258,2]
[375761486,1753732259831,-2000.0,0.000258,2]
[375761487,1753732259840,-2000.0,0.000258,2]
[375761488,1753732259849,-2000.0,0.000258,2]
[375761489,1753732259860,-211.288,0.000258,2]
[375761490,1753732259870,-211.288,0.000258,2]
[375761491,1753732259880,-150.0,0.00025804,2]
[375761492,1753732259889,-4863.78450328,0.00025808,2]
[375761493,1753732259899,-807.0,0.00025846,2]
[375761494,1753732259909,-807.0,0.00025871,2]
[375761495,1753732259918,-754.31,0.00025878,4]
[375761496,1753732259928,-936.75410943,0.00025908,2]
[375761497,1753732259937,-167.54041286,0.00025931,2]
[375761498,1753732259946,-618.53334795,0.00025969,2]
[375761499,1753732259955,-754.31,0.00025978,3]
[375761500,1753732259964,-158.348141,0.0002598,14]
[375761501,1753732259973,-150.0,0.00025994,2]
[375761502,1753732259982,-519.16065723,0.00026,2]
[375761503,1753732259991,-19900.0,0.00026,2]
[375761504,1753732260001,-151.0,0.00026,7]
[375761505,1753732260011,-151.0,0.00026,7]
[375761506,1753732260021,-51371.049954,0.00026,30]
[375761507,1753732260032,-151.0,0.00026,7]
[375761508,1753732260045,-151.0,0.00026,7]
[375761509,1753732260056,-153.26411,0.00026,7]
[375761510,1753732260067,-586.760004,0.00026,7]
[375761511,1753732260079,-586.760004,0.00026,7]
[375761512,1753732260090,-295.760959,0.00026,7]
[375761513,1753732260101,-295.760959,0.00026,7]
[375761514,1753732260111,-214.87999826,0.00026,30]
[375761515,1753732260123,-12634.73134317,0.00026,30]
[375761516,1753732260133,-216.06083566,0.00026,30]
[375761517,1753732260142,-526.58819812,0.00026,30]
[375761518,1753732260152,-840.90880427,0.00026,30]
[375761519,1753732260162,-231.34820253,0.00026,30]
[375761520,1753732260172,-312.16666667,0.00026,30]
[375761521,1753732260183,-954.03595039,0.0002602,2]
[375761522,1753732260192,-194.999999,0.0002602,2]
[375761523,1753732260202,-500.0,0.00026027,7]
[375761524,1753732260212,-500.0,0.00026027,2]
[375761525,1753732260222,-500.0,0.00026027,10]
[375761526,1753732260231,-500.0,0.00026027,2]
[375761527,1753732260242,-500.0,0.00026027,10]
[375761528,1753732260251,-500.0,0.00026027,10]
[375761529,1753732260260,-500.0,0.00026027,10]
[375761530,1753732260270,-500.0,0.00026027,10]
[375761531,1753732260280,-500.0,0.00026027,7]
[375761532,1753732260290,-265.405404,0.00026027,2]
[375761533,1753732260299,-151.0,0.00026028,2]
[375761534,1753732260310,-151.0,0.00026028,2]
[375761535,1753732260319,-151.0,0.00026028,2]
[375761536,1753732260328,-503.0,0.00026028,2]
[375761537,1753732260338,-245.0,0.00026028,2]
[375761538,1753732260348,-151.0,0.00026028,2]
[375761539,1753732260358,-599.0,0.00026028,2]
[375761540,1753732260367,-1060.0,0.00026045,2]
[375761541,1753732260377,-4863.78450328,0.00026065,2]
[375761542,1753732260386,-754.31,0.00026078,7]
[375761543,1753732260395,-1000.0,0.000261,3]
[375761544,1753732260404,-151.0,0.000261,7]
[375761545,1753732260413,-151.0,0.000261,7]
[375761546,1753732260423,-151.0,0.000261,7]
[375761547,1753732260433,-151.0,0.000261,7]
[375761548,1753732260443,-578.285103,0.000261,7]
[375761549,1753732260452,-578.285103,0.000261,7]
[375761550,1753732260462,-151.0,0.000261,7]
[375761551,1753732260471,-807.0,0.00026124,2]
[375761552,1753732260481,-1208.09352367,0.00026137,120]
[375761553,1753732353390,39650.65635295,0.00018978,2]
[375761554,1753732353412,40000.0,0.00018978,2]
[375761555,1753732353435,40000.0,0.00018978,2]
[375761556,1753732353458,40000.0,0.00018978,2]
[375761557,1753732353481,2907.22546968,0.00018978,2]
[375761559,1753732675581,216.634696,0.00018515,2]
[375761561,1753732743662,414.346449,0.00013699,2]
[375761562,1753732773263,10000.0,0.00023,30]
[375761563,1753732797451,10000.0,0.00023,30]
[375761564,1753732824008,10000.0,0.00023,30]
[375761565,1753732880968,10000.0,0.00023,30]
[375761566,1753732929453,10000.0,0.00023,30]
[375761567,1753733105754,10000.0,0.00023,30]
[375761568,1753733120538,24900.0,0.00018315,2]
[375761569,1753733140971,1466.20417529,0.0001901,2]
[375761570,1753733156193,3533.79582471,0.0001901,2]
[375761571,1753733159150,-313.47552134,0.00019078,2]
[375761572,1753733159170,-500.0,0.00019173,2]
[375761573,1753733159191,-300.0,0.00019177,2]
[375761574,1753733159211,-308.09142633,0.00019177,2]
[375761575,1753733198635,10000.0,0.00023,30]
[375761576,1753733226717,10000.0,0.00023,30]
[375761577,1753733238116,-422.90857367,0.00019177,2]
[375761578,1753733238142,-163.09836476,0.00019177,2]
[375761579,1753733238164,-460.0,0.00019178,2]
[375761580,1753733238186,-460.0,0.00019178,2]
[375761581,1753733238207,-460.0,0.00019178,2]
[375761582,1753733238228,-460.0,0.00019178,2]
[375761583,1753733238249,-448.98581092,0.00019178,2]
[375761588,1753733304945,214.91090101,0.0001891,2]
[375761589,1753733305300,214.910901,0.00018978,2]
[375761634,1753733432446,-429.82180201,0.0001901,2]
[375761672,1753733438301,-1997.32776313,0.0001901,2]
[375761673,1753733438459,-7572.85043486,0.0001901,2]
[375761674,1753733438469,-10000.0,0.0001901,2]
[375761675,1753733438479,-300.0,0.0001901,2]
[375761676,1753733438489,-297.48667914,0.00019078,2]
[375761677,1753733438498,-460.0,0.00019178,2]
[375761678,1753733438508,-460.0,0.00019178,2]
[375761679,1753733438517,-460.0,0.00019178,2]
[375761680,1753733438526,-460.0,0.00019178,2]
[375761681,1753733438536,-460.0,0.00019178,2]
[375761682,1753733438545,-460.0,0.00019178,2]
[375761683,1753733438557,-460.0,0.00019178,2]
[375761684,1753733438566,-460.0,0.00019178,2]
[375761685,1753733438576,-460.0,0.00019178,2]
[375761686,1753733438585,-460.0,0.00019178,2]
[375761687,1753733438594,-460.0,0.00019178,2]
[375761688,1753733438604,-460.0,0.00019178,2]
[375761689,1753733438613,-460.0,0.00019178,2]
[375761690,1753733438622,-460.0,0.00019178,2]
[375761691,1753733438631,-460.0,0.00019178,2]
[375761692,1753733438641,-460.0,0.00019178,2]
[375761693,1753733438650,-460.0,0.00019178,2]
[375761694,1753733438659,-460.0,0.00019178,2]
[375761695,1753733438668,-460.0,0.00019178,2]
[375761696,1753733438678,-460.0,0.00019178,2]
[375761697,1753733438687,-460.0,0.00019178,2]
[375761698,1753733438696,-460.0,0.00019178,2]
[375761699,1753733438706,-460.0,0.00019178,2]
[375761700,1753733438715,-460.0,0.00019178,2]
[375761701,1753733438725,-460.0,0.00019178,2]
[375761702,1753733438735,-460.0,0.00019178,2]
[375761703,1753733438745,-460.0,0.00019178,2]
[375761704,1753733438754,-460.0,0.00019178,2]
[375761705,1753733438763,-460.0,0.00019178,2]
[375761706,1753733438773,-460.0,0.00019178,2]
[375761707,1753733438782,-460.0,0.00019178,2]
[375761708,1753733438791,-228.53735661,0.00019178,2]
[375761709,1753733438801,-460.0,0.00019178,2]
[375761710,1753733438816,-460.0,0.00019178,2]
[375761711,1753733438826,-510.74391998,0.00019178,2]
[375761712,1753733438836,-460.0,0.00019178,2]
[375761713,1753733438846,-460.0,0.00019178,2]
[375761714,1753733438856,-460.0,0.00019178,2]
[375761715,1753733438865,-460.0,0.00019178,2]
[375761716,1753733438875,-460.0,0.00019178,2]
[375761717,1753733438885,-460.0,0.00019178,2]
[375761718,1753733438894,-5741.72,0.00019178,2]
[375761719,1753733438904,-460.0,0.00019178,2]
[375761720,1753733438913,-460.0,0.00019178,2]
[375761721,1753733438924,-460.0,0.00019178,2]
[375761722,1753733438934,-460.0,0.00019178,2]
[375761723,1753733438943,-460.0,0.00019178,2]
[375761724,1753733438953,-460.0,0.00019178,2]
[375761725,1753733438963,-460.0,0.00019178,2]
[375761726,1753733438972,-460.0,0.00019178,2]
[375761727,1753733438982,-801.46,0.00019178,2]
[375761728,1753733438992,-460.0,0.00019178,2]
[375761729,1753733439001,-2911.98,0.00019178,2]
[375761730,1753733439011,-460.0,0.00019178,2]
[375761731,1753733439021,-460.0,0.00019178,2]
[375761732,1753733439031,-460.0,0.00019178,2]
[375761733,1753733439040,-460.0,0.00019178,2]
[375761734,1753733439050,-460.0,0.00019178,2]
[375761735,1753733439062,-460.0,0.00019178,2]
[375761736,1753733439071,-460.0,0.00019178,2]
[375761737,1753733439081,-460.0,0.00019178,2]
[375761738,1753733439091,-460.0,0.00019178,2]
[375761739,1753733439101,-460.0,0.00019178,2]
[375761740,1753733439110,-460.0,0.00019178,2]
[375761741,1753733439120,-1640.63,0.00019178,2]
[375761742,1753733439129,-460.0,0.00019178,2]
[375761743,1753733439139,-460.0,0.00019178,2]
[375761744,1753733439148,-460.0,0.00019178,2]
[375761745,1753733439158,-460.0,0.00019178,2]
[375761746,1753733439167,-487.28,0.00019178,2]
[375761747,1753733439176,-460.0,0.00019178,2]
[375761748,1753733439185,-460.0,0.00019178,2]
[375761749,1753733439195,-380.8339026,0.00019178,2]
[375761750,1753733439204,-460.0,0.00019178,2]
[375761751,1753733439214,-460.0,0.00019178,2]
[375761752,1753733439223,-460.0,0.00019178,2]
[375761753,1753733439233,-460.0,0.00019178,2]
[375761754,1753733439242,-460.0,0.00019178,2]
[375761755,1753733439251,-460.0,0.00019178,2]
[375761756,1753733439261,-460.0,0.00019178,2]
[375761757,1753733439271,-460.0,0.00019178,2]
[375761758,1753733439280,-1018.37,0.00019178,2]
[375761759,1753733439289,-460.0,0.00019178,2]
[375761760,1753733439298,-1878.19,0.00019178,2]
[375761761,1753733439308,-460.0,0.00019178,2]
[375761762,1753733439318,-460.0,0.00019178,2]
[375761763,1753733439327,-460.0,0.00019178,2]
[375761764,1753733439337,-460.0,0.00019178,2]
[375761765,1753733439347,-460.0,0.00019178,2]
[375761766,1753733439356,-460.0,0.00019178,2]
[375761767,1753733439366,-460.0,0.00019178,2]
[375761768,1753733439375,-460.0,0.00019178,2]
[375761769,1753733439385,-460.0,0.00019178,2]
[375761770,1753733439394,-460.0,0.00019178,2]
[375761771,1753733439404,-460.0,0.00019178,2]
[375761772,1753733439418,-801.31,0.00019178,2]
[375761773,1753733439428,-460.0,0.00019178,2]
[375761774,1753733439438,-239.77690934,0.00019178,2]
[375761775,1753733439448,-460.0,0.00019178,2]
[375761776,1753733439459,-460.0,0.00019178,2]
[375761777,1753733439468,-460.0,0.00019178,2]
[375761778,1753733439478,-460.0,0.00019178,2]
[375761779,1753733439487,-460.0,0.00019178,2]
[375761780,1753733439497,-422.748628,0.00019178,2]
[375761781,1753733439507,-866.9,0.00019178,2]
[375761782,1753733439516,-1263.71,0.00019178,2]
[375761783,1753733439525,-379.82624648,0.00019178,2]
[375761784,1753733439535,-460.0,0.00019178,2]
[375761785,1753733439545,-460.0,0.00019178,2]
[375761786,1753733439555,-460.0,0.00019178,2]
[375761787,1753733439565,-460.0,0.00019178,2]
[375761788,1753733439574,-460.0,0.00019178,2]
[375761789,1753733439583,-460.0,0.00019178,2]
[375761790,1753733439593,-1206.36,0.00019178,2]
[375761791,1753733439602,-460.0,0.00019178,2]
[375761792,1753733439612,-460.0,0.00019178,2]
[375761793,1753733439621,-460.0,0.00019178,2]
[375761794,1753733439630,-460.0,0.00019178,2]
[375761795,1753733439640,-460.0,0.00019178,2]
[375761796,1753733439649,-460.0,0.00019178,2]
[375761797,1753733439659,-460.0,0.00019178,2]
[375761798,1753733439668,-1649.91,0.00019178,2]
[375761799,1753733439726,-460.0,0.00019178,2]
[375761800,1753733439735,-460.0,0.00019178,2]
[375761801,1753733439744,-460.0,0.00019178,2]
[375761802,1753733439754,-460.0,0.00019178,2]
[375761803,1753733439763,-460.0,0.00019178,2]
[375761804,1753733439781,-460.0,0.00019178,2]
[375761805,1753733439793,-460.0,0.00019178,2]
[375761806,1753733439803,-2530.49,0.00019178,2]
[375761807,1753733439815,-460.0,0.00019178,2]
[375761808,1753733439826,-460.0,0.00019178,2]
[375761809,1753733439836,-460.0,0.00019178,2]
[375761810,1753733439846,-460.0,0.00019178,2]
[375761812,1753733439856,-460.0,0.00019178,2]
[375761813,1753733439866,-418.80659644,0.00019178,2]
[375761814,1753733439876,-460.0,0.00019178,2]
[375761815,1753733439886,-460.0,0.00019178,2]
[375761816,1753733439896,-176.936936,0.00019178,2]
[375761817,1753733439906,-356.66,0.00019442,3]
[375761818,1753733439916,-178.33,0.00019442,3]
[375761819,1753733439926,-535.03,0.00019442,3]
[375761820,1753733439936,-460.0,0.00019451,2]
[375761821,1753733439946,-460.0,0.00019451,2]
[375761822,1753733439955,-1205.45,0.00019451,2]
[375761823,1753733439965,-1830.73,0.00019451,2]
[375761824,1753733439975,-460.0,0.00019451,2]
[375761825,1753733439985,-547.07,0.00019451,2]
[375761826,1753733439995,-460.0,0.00019452,2]
[375761827,1753733440004,-460.0,0.00019452,2]
[375761828,1753733440014,-460.0,0.00019452,2]
[375761829,1753733440024,-460.0,0.00019452,2]
[375761830,1753733440034,-460.0,0.00019452,2]
[375761831,1753733440044,-460.0,0.00019452,2]
[375761832,1753733440058,-460.0,0.00019452,2]
[375761833,1753733440069,-460.0,0.00019452,2]
[375761834,1753733440079,-460.0,0.00019452,2]
[375761835,1753733440089,-460.0,0.00019452,2]
[375761836,1753733440099,-460.0,0.00019452,2]
[375761837,1753733440108,-460.0,0.00019452,2]
[375761838,1753733440118,-460.0,0.00019452,2]
[375761839,1753733440128,-211.2777497,0.00019452,2]
[375761840,1753733440138,-460.0,0.00019452,2]
[375761841,1753733440147,-460.0,0.00019452,2]
[375761842,1753733440157,-460.0,0.00019452,2]
[375761843,1753733440167,-460.0,0.00019452,2]
[375761844,1753733440177,-318.8391666,0.00019452,2]
[375761845,1753733440188,-460.0,0.00019452,2]
[375761847,1753733440198,-460.0,0.00019452,2]
[375761849,1753733440207,-460.0,0.00019452,2]
[375761851,1753733440216,-460.0,0.00019452,2]
[375761853,1753733440226,-460.0,0.00019452,2]
[375761856,1753733440236,-460.0,0.00019452,2]
[375761858,1753733440246,-460.0,0.00019452,2]
[375761860,1753733440255,-460.0,0.00019452,2]
[375761861,1753733440265,-460.0,0.00019452,2]
[375761863,1753733440275,-460.0,0.00019452,2]
[375761865,1753733440284,-460.0,0.00019452,2]
[375761867,1753733440294,-460.0,0.00019452,2]
[375761869,1753733440303,-460.0,0.00019452,2]
[375761872,1753733440315,-460.0,0.00019452,2]
[375761874,1753733440324,-555.83,0.00019452,2]
[375761876,1753733440333,-5741.72,0.00019452,2]
[375761878,1753733440343,-460.0,0.00019452,2]
[375761880,1753733440353,-460.0,0.00019452,2]
[375761882,1753733440364,-460.0,0.00019452,2]
[375761884,1753733440374,-460.0,0.00019452,2]
[375761886,1753733440383,-460.0,0.00019452,2]
[375761888,1753733440393,-460.0,0.00019452,2]
[375761890,1753733440408,-801.46,0.00019452,2]
[375761892,1753733440421,-2911.98,0.00019452,2]
[375761894,1753733440430,-460.0,0.00019452,2]
[375761896,1753733440439,-460.0,0.00019452,2]
[375761898,1753733440449,-180.11677036,0.00019452,2]
[375761900,1753733440459,-460.0,0.00019452,2]
[375761902,1753733440469,-460.0,0.00019452,2]
[375761905,1753733440478,-460.0,0.00019452,2]
[375761907,1753733440488,-460.0,0.00019452,2]
[375761908,1753733440497,-460.0,0.00019452,2]
[375761910,1753733440507,-460.0,0.00019452,2]
[375761913,1753733440517,-1640.63,0.00019452,2]
[375761935,1753733440714,-270.51133731,0.00019452,2]
[375761937,1753733440728,-460.0,0.00019452,2]
[375761939,1753733440737,-460.0,0.00019452,2]
[375761941,1753733440747,-460.0,0.00019452,2]
[375761944,1753733440756,-487.28,0.00019452,2]
[375761946,1753733440766,-460.0,0.00019452,2]
[375761948,1753733440775,-460.0,0.00019452,2]
[375761950,1753733440784,-460.0,0.00019452,2]
[375761952,1753733440792,-460.0,0.00019452,2]
[375761953,1753733440802,-460.0,0.00019452,2]
[375761955,1753733440813,-460.0,0.00019452,2]
[375761958,1753733440822,-460.0,0.00019452,2]
[375761959,1753733440831,-460.0,0.00019452,2]
[375761961,1753733440840,-1018.37,0.00019452,2]
[375761963,1753733440850,-460.0,0.00019452,2]
[375761965,1753733440859,-460.0,0.00019452,2]
[375761967,1753733440869,-1878.19,0.00019452,2]
[375761969,1753733440878,-460.0,0.00019452,2]
[375761972,1753733440887,-460.0,0.00019452,2]
[375761974,1753733440897,-460.0,0.00019452,2]
[375761976,1753733440906,-460.0,0.00019452,2]
[375761978,1753733440916,-460.0,0.00019452,2]
[375761980,1753733440925,-460.0,0.00019452,2]
[375761982,1753733440934,-460.0,0.00019452,2]
[375761983,1753733440943,-460.0,0.00019452,2]
[375761986,1753733440953,-460.0,0.00019452,2]
[375761988,1753733440962,-460.0,0.00019452,2]
[375761990,1753733440974,-801.31,0.00019452,2]
[375761992,1753733440983,-460.0,0.00019452,2]
[375761994,1753733440993,-460.0,0.00019452,2]
[375761996,1753733441002,-460.0,0.00019452,2]
[375761998,1753733441012,-460.0,0.00019452,2]
[375762000,1753733441021,-460.0,0.00019452,2]
[375762002,1753733441030,-460.0,0.00019452,2]
[375762004,1753733441041,-866.9,0.00019452,2]
[375762006,1753733441051,-1263.71,0.00019452,2]
[375762008,1753733441062,-460.0,0.00019452,2]
[375762010,1753733441071,-460.0,0.00019452,2]
[375762012,1753733441080,-460.0,0.00019452,2]
[375762014,1753733441090,-460.0,0.00019452,2]
[375762016,1753733441099,-1206.36,0.00019452,2]
[375762017,1753733441108,-460.0,0.00019452,2]
[375762019,1753733441117,-460.0,0.00019452,2]
[375762021,1753733441127,-406.1492004,0.00019452,2]
[375762023,1753733441136,-460.0,0.00019452,2]
[375762025,1753733441146,-460.0,0.00019452,2]
[375762027,1753733441155,-460.0,0.00019452,2]
[375762029,1753733441165,-460.0,0.00019452,2]
[375762031,1753733441175,-460.0,0.00019452,2]
[375762033,1753733441185,-1649.91,0.00019452,2]
[375762035,1753733441194,-460.0,0.00019452,2]
[375762037,1753733441203,-460.0,0.00019452,2]
[375762039,1753733441213,-460.0,0.00019452,2]
[375762041,1753733441222,-460.0,0.00019452,2]
[375762043,1753733441231,-460.0,0.00019452,2]
[375762045,1753733441240,-460.0,0.00019452,2]
[375762047,1753733441249,-460.0,0.00019452,2]
[375762049,1753733441258,-396.32042496,0.00019452,2]
[375762051,1753733441267,-2530.49,0.00019452,2]
[375762053,1753733441277,-460.0,0.00019452,2]
[375762055,1753733441286,-460.0,0.00019452,2]
[375762057,1753733441296,-460.0,0.00019452,2]
[375762059,1753733441307,-460.0,0.00019452,2]
[375762061,1753733441317,-460.0,0.00019452,2]
[375762063,1753733441326,-200.0,0.00019561,15]
[375762065,1753733441336,-200.0,0.00019561,15]
[375762067,1753733441345,-200.0,0.00019561,15]
[375762069,1753733441354,-200.0,0.00019561,15]
[375762071,1753733441364,-10000.0,0.00019684,2]
[375762073,1753733441373,-1000.0,0.00019721,2]
[375762075,1753733441382,-1205.45,0.00019725,2]
[375762077,1753733441392,-1830.73,0.00019725,2]
[375762079,1753733441402,-460.0,0.00019725,2]
[375762081,1753733441415,-547.07,0.00019725,2]
[375762083,1753733441424,-460.0,0.00019726,2]
[375762085,1753733441433,-460.0,0.00019726,2]
[375762087,1753733441442,-460.0,0.00019726,2]
[375762089,1753733441451,-460.0,0.00019726,2]
[375762091,1753733441462,-460.0,0.00019726,2]